[Event "Late-Titled-Tuesday-Blitz-October-17-2023"]
[Site "Chess.com"]
[Date "2023.10.17"]
[Round "5"]
[White "Tiqr777"]
[Black "maciek_92"]
[Result "1-0"]
[WhiteElo "2642"]
[BlackElo "2830"]
[TimeControl "180+1"]
[EndTime "14:55:59 PDT"]
[Termination "Tiqr777 won by resignation"]

1. c4 {[%clk 0:02:59.8]} 1... e5 {[%clk 0:02:59.8]} 2. Nc3 {[%clk 0:03:00.3]}
2... Nc6 {[%clk 0:03:00.3]} 3. g3 {[%clk 0:03:00.9]} 3... f5 {[%clk 0:03:00.5]}
4. Bg2 {[%clk 0:03:01.5]} 4... Nf6 {[%clk 0:03:01.2]} 5. d3 {[%clk 0:03:02.1]}
5... Be7 {[%clk 0:03:01.8]} 6. Nf3 {[%clk 0:03:02.7]} 6... O-O {[%clk
0:03:02.3]} 7. O-O {[%clk 0:03:03.4]} 7... d6 {[%clk 0:03:02.9]} 8. Rb1 {[%clk
0:03:03.9]} 8... Qe8 {[%clk 0:03:03.4]} 9. b4 {[%clk 0:02:58.9]} 9... Bd8 {[%clk
0:03:03.8]} 10. b5 {[%clk 0:02:58.8]} 10... Ne7 {[%clk 0:03:04.1]} 11. c5 {[%clk
0:02:57.8]} 11... Ng6 {[%clk 0:02:48.8]} 12. cxd6 {[%clk 0:02:56.1]} 12... cxd6
{[%clk 0:02:48.9]} 13. Ba3 {[%clk 0:02:56.4]} 13... Be7 {[%clk 0:02:47.6]} 14.
Qb3+ {[%clk 0:02:52.9]} 14... Kh8 {[%clk 0:02:47.5]} 15. Ng5 {[%clk 0:02:49]}
15... d5 {[%clk 0:02:13]} 16. Bxe7 {[%clk 0:02:36.9]} 16... Qxe7 {[%clk
0:02:11.8]} 17. Nf3 {[%clk 0:02:26.9]} 17... Be6 {[%clk 0:02:05.5]} 18. d4
{[%clk 0:02:11.6]} 18... e4 {[%clk 0:02:05.7]} 19. Ng5 {[%clk 0:02:11.3]} 19...
Bg8 {[%clk 0:02:04.7]} 20. e3 {[%clk 0:02:07.2]} 20... Rac8 {[%clk 0:01:09.3]}
21. Rfc1 {[%clk 0:02:06.8]} 21... f4 {[%clk 0:01:05.1]} 22. exf4 {[%clk
0:01:57.9]} 22... Nh5 {[%clk 0:00:47.9]} 23. Nxd5 {[%clk 0:01:40.3]} 23... Qd6
{[%clk 0:00:37.5]} 24. Bxe4 {[%clk 0:01:38.3]} 24... Ne7 {[%clk 0:00:13.6]} 25.
Qb4 {[%clk 0:01:27.6]} 25... Qxb4 {[%clk 0:00:09.6]} 26. Nxb4 {[%clk 0:01:28.2]}
26... Nf6 {[%clk 0:00:09.9]} 27. Bxb7 {[%clk 0:01:25.4]} 27... Rb8 {[%clk
0:00:05.3]} 28. Bg2 {[%clk 0:01:24.6]} 28... Rxb5 {[%clk 0:00:04.3]} 29. Nc6
{[%clk 0:01:23.2]} 29... Rxb1 {[%clk 0:00:03.7]} 30. Rxb1 {[%clk 0:01:23.8]}
30... Nxc6 {[%clk 0:00:03.7]} 31. Bxc6 {[%clk 0:01:24.4]} 31... Rd8 {[%clk
0:00:04.6]} 32. d5 {[%clk 0:01:18.4]} 32... h6 {[%clk 0:00:04]} 33. Ne6 {[%clk
0:01:18.1]} 33... Rd6 {[%clk 0:00:04.5]} 34. Rb8 {[%clk 0:01:13.3]} 34... Kh7
{[%clk 0:00:05.1]} 35. Nf8+ {[%clk 0:01:13]} 35... Kh8 {[%clk 0:00:04.7]} 36.
Ng6+ {[%clk 0:01:12.7]} 36... Kh7 {[%clk 0:00:05.4]} 37. Ne7 {[%clk 0:01:08.1]}
37... Bf7 {[%clk 0:00:04.7]} 38. Rf8 {[%clk 0:01:04.2]} 38... Bxd5 {[%clk
0:00:02]} 39. Nxd5 {[%clk 0:00:47.7]} 39... Nxd5 {[%clk 0:00:02.9]} 40. Ba4
{[%clk 0:00:47.8]} 40... Nb4 {[%clk 0:00:03]} 41. Bb3 {[%clk 0:00:46.3]} 41...
g5 {[%clk 0:00:02.7]} 42. f5 {[%clk 0:00:46.5]} 42... Kg7 {[%clk 0:00:02.6]} 43.
Rf7+ {[%clk 0:00:46.5]} 43... Kh8 {[%clk 0:00:03.3]} 44. Rxa7 {[%clk 0:00:46.9]}
44... Nd3 {[%clk 0:00:03.4]} 45. Kg2 {[%clk 0:00:39.9]} 45... Nc5 {[%clk
0:00:03.6]} 46. Bf7 {[%clk 0:00:38.2]} 46... Rd2 {[%clk 0:00:03.9]} 47. f6
{[%clk 0:00:30.8]} 47... Ne4 {[%clk 0:00:04]} 48. Kf3 {[%clk 0:00:16.4]} 48...
Nxf6 {[%clk 0:00:04.5]} 49. Bb3 {[%clk 0:00:16]} 49... Rd3+ {[%clk 0:00:04.4]}
50. Ke2 {[%clk 0:00:15.8]} 50... Rd6 {[%clk 0:00:05.2]} 51. Rf7 {[%clk 0:00:16]}
51... Ne4 {[%clk 0:00:04.9]} 52. Ke3 {[%clk 0:00:16.4]} 52... Nf6 {[%clk
0:00:03.1]} 53. f4 {[%clk 0:00:15.4]} 53... Ng4+ {[%clk 0:00:02.6]} 54. Ke4
{[%clk 0:00:15.3]} 54... gxf4 {[%clk 0:00:02.6]} 55. Kxf4 {[%clk 0:00:15.5]}
55... Nxh2 {[%clk 0:00:03.1]} 56. Rf5 {[%clk 0:00:15.6]} 56... Nf1 {[%clk
0:00:02.8]} 57. Rd5 {[%clk 0:00:15.9]} 57... Rf6+ {[%clk 0:00:02.7]} 58. Ke5
{[%clk 0:00:15.9]} 58... Kg7 {[%clk 0:00:03.3]} 59. Rd7+ {[%clk 0:00:15.4]}
59... Kg6 {[%clk 0:00:03.9]} 60. Bc2+ {[%clk 0:00:16]} 60... Kg5 {[%clk
0:00:04.2]} 61. Rg7+ {[%clk 0:00:16.5]} 61... Kh5 {[%clk 0:00:04]} 62. Kxf6
{[%clk 0:00:17.1]} 62... Ne3 {[%clk 0:00:04]} 63. Be4 {[%clk 0:00:17.1]} 63...
Ng4+ {[%clk 0:00:03.2]} 64. Rxg4 {[%clk 0:00:16.7]} 64... Kxg4 {[%clk
0:00:03.4]} 65. a4 {[%clk 0:00:17.5]} 1-0

[Event "Late-Titled-Tuesday-Blitz-October-17-2023"]
[Site "Chess.com"]
[Date "2023.10.17"]
[Round "5"]
[White "Zq1"]
[Black "Casablanca"]
[Result "1/2-1/2"]
[WhiteElo "2541"]
[BlackElo "2752"]
[TimeControl "180+1"]
[EndTime "14:55:59 PDT"]
[Termination "Game drawn - insufficient material"]

1. d4 {[%clk 0:03:00.9]} 1... Nf6 {[%clk 0:02:59.7]} 2. c4 {[%clk 0:03:00.8]}
2... e6 {[%clk 0:02:58.6]} 3. Nc3 {[%clk 0:03:00]} 3... Bb4 {[%clk 0:02:58.6]}
4. a3 {[%clk 0:03:00.2]} 4... Bxc3+ {[%clk 0:02:57.4]} 5. bxc3 {[%clk
0:03:00.8]} 5... O-O {[%clk 0:02:57.4]} 6. e3 {[%clk 0:03:00.7]} 6... c5 {[%clk
0:02:57.2]} 7. Bd3 {[%clk 0:03:00.4]} 7... d6 {[%clk 0:02:56.2]} 8. Ne2 {[%clk
0:02:55.7]} 8... Nc6 {[%clk 0:02:56.4]} 9. O-O {[%clk 0:02:52.2]} 9... e5 {[%clk
0:02:56.6]} 10. e4 {[%clk 0:02:52.2]} 10... h6 {[%clk 0:02:49.3]} 11. d5 {[%clk
0:02:48.2]} 11... Ne7 {[%clk 0:02:47]} 12. f3 {[%clk 0:02:48.2]} 12... Ng6
{[%clk 0:02:43.9]} 13. Be3 {[%clk 0:02:45]} 13... b6 {[%clk 0:02:43]} 14. Qd2
{[%clk 0:02:40.5]} 14... Nh5 {[%clk 0:02:39]} 15. g4 {[%clk 0:02:34.8]} 15...
Nhf4 {[%clk 0:02:36.6]} 16. Nxf4 {[%clk 0:02:34.1]} 16... exf4 {[%clk
0:02:36.3]} 17. Bxf4 {[%clk 0:02:34]} 17... Nxf4 {[%clk 0:02:36.9]} 18. Qxf4
{[%clk 0:02:33.3]} 18... Qg5 {[%clk 0:02:31.6]} 19. Qxg5 {[%clk 0:02:30.7]}
19... hxg5 {[%clk 0:02:32.5]} 20. Kg2 {[%clk 0:02:24.1]} 20... g6 {[%clk
0:02:24.4]} 21. Kg3 {[%clk 0:02:22.6]} 21... Kg7 {[%clk 0:02:24.6]} 22. h4
{[%clk 0:02:22.3]} 22... gxh4+ {[%clk 0:02:23.2]} 23. Kxh4 {[%clk 0:02:22]}
23... Rh8+ {[%clk 0:02:24.1]} 24. Kg3 {[%clk 0:02:22]} 24... g5 {[%clk
0:02:22.8]} 25. Rh1 {[%clk 0:02:17.1]} 25... Bd7 {[%clk 0:02:11.9]} 26. Bc2
{[%clk 0:02:13.7]} 26... Rag8 {[%clk 0:01:52.9]} 27. f4 {[%clk 0:02:09.3]} 27...
Kf6 {[%clk 0:01:51.3]} 28. Rxh8 {[%clk 0:01:59.5]} 28... Rxh8 {[%clk 0:01:52.2]}
29. Rf1 {[%clk 0:01:54.4]} 29... gxf4+ {[%clk 0:01:52.2]} 30. Rxf4+ {[%clk
0:01:50.5]} 30... Ke7 {[%clk 0:01:50.8]} 31. Rf1 {[%clk 0:01:32.4]} 31... f6
{[%clk 0:01:50.7]} 32. a4 {[%clk 0:01:26.6]} 32... Rg8 {[%clk 0:01:41.9]} 33.
Bd1 {[%clk 0:01:25.8]} 33... Rh8 {[%clk 0:01:42.1]} 34. Bf3 {[%clk 0:01:11.1]}
34... a5 {[%clk 0:01:34.5]} 35. Rb1 {[%clk 0:01:08.9]} 35... Bxa4 {[%clk
0:01:33.8]} 36. Rxb6 {[%clk 0:01:07.1]} 36... Bd7 {[%clk 0:01:30.5]} 37. Ra6
{[%clk 0:01:02.5]} 37... a4 {[%clk 0:01:30.9]} 38. Bd1 {[%clk 0:00:57.3]} 38...
Rg8 {[%clk 0:00:54.6]} 39. Ra7 {[%clk 0:00:50]} 39... Kd8 {[%clk 0:00:49.9]} 40.
Kf2 {[%clk 0:00:36.2]} 40... Bxg4 {[%clk 0:00:45.1]} 41. Bxa4 {[%clk 0:00:24.8]}
41... Bc8 {[%clk 0:00:20.9]} 42. Rf7 {[%clk 0:00:20.3]} 42... Rg6 {[%clk
0:00:21]} 43. Bd1 {[%clk 0:00:18.9]} 43... Rh6 {[%clk 0:00:20.3]} 44. Kg3 {[%clk
0:00:17.7]} 44... Rg6+ {[%clk 0:00:19.8]} 45. Kf4 {[%clk 0:00:17.3]} 45... Rh6
{[%clk 0:00:20.3]} 46. Rg7 {[%clk 0:00:15.9]} 46... Bd7 {[%clk 0:00:19.7]} 47.
Bg4 {[%clk 0:00:14.4]} 47... Ba4 {[%clk 0:00:14.4]} 48. Be6 {[%clk 0:00:11.6]}
48... Be8 {[%clk 0:00:10.8]} 49. Kf5 {[%clk 0:00:11.4]} 49... Rh4 {[%clk
0:00:08]} 50. Kxf6 {[%clk 0:00:10.7]} 50... Rxe4 {[%clk 0:00:07.1]} 51. Ra7
{[%clk 0:00:10.2]} 51... Rf4+ {[%clk 0:00:06.8]} 52. Bf5 {[%clk 0:00:08.6]}
52... Bh5 {[%clk 0:00:04.8]} 53. Ke6 {[%clk 0:00:06.5]} 53... Rxc4 {[%clk
0:00:03.4]} 54. Kxd6 {[%clk 0:00:06.5]} 54... Ke8 {[%clk 0:00:03.4]} 55. Be6
{[%clk 0:00:06.5]} 55... Kf8 {[%clk 0:00:02.7]} 56. Rh7 {[%clk 0:00:07]} 56...
Bg6 {[%clk 0:00:02.8]} 57. Rh8+ {[%clk 0:00:06.7]} 57... Kg7 {[%clk 0:00:03.7]}
58. Rg8+ {[%clk 0:00:07]} 58... Kf6 {[%clk 0:00:03.8]} 59. Rc8 {[%clk
0:00:07.7]} 59... Rxc3 {[%clk 0:00:03.8]} 60. Rxc5 {[%clk 0:00:07.9]} 60... Rxc5
{[%clk 0:00:04.6]} 61. Kxc5 {[%clk 0:00:08]} 61... Ke7 {[%clk 0:00:05.5]} 62.
Bg4 {[%clk 0:00:07.8]} 62... Be8 {[%clk 0:00:06.2]} 63. d6+ {[%clk 0:00:08]}
63... Kd8 {[%clk 0:00:06]} 64. Kd5 {[%clk 0:00:08]} 64... Bd7 {[%clk 0:00:06.6]}
65. Be6 {[%clk 0:00:08]} 65... Bxe6+ {[%clk 0:00:06.2]} 66. Kxe6 {[%clk
0:00:08.3]} 66... Ke8 {[%clk 0:00:06.9]} 67. d7+ {[%clk 0:00:08.8]} 67... Kd8
{[%clk 0:00:07.5]} 68. Kf5 {[%clk 0:00:09.1]} 68... Kxd7 {[%clk 0:00:07.4]}
1/2-1/2

[Event "Late-Titled-Tuesday-Blitz-October-17-2023"]
[Site "Chess.com"]
[Date "2023.10.17"]
[Round "5"]
[White "Baku_Boulevard"]
[Black "tptagain"]
[Result "1/2-1/2"]
[WhiteElo "3012"]
[BlackElo "2913"]
[TimeControl "180+1"]
[EndTime "14:56:01 PDT"]
[Termination "Game drawn by repetition"]

1. e4 {[%clk 0:03:00.9]} 1... c5 {[%clk 0:02:58.9]} 2. Nf3 {[%clk 0:03:00.7]}
2... Nc6 {[%clk 0:02:59.5]} 3. c3 {[%clk 0:02:58.7]} 3... Nf6 {[%clk 0:02:58.7]}
4. e5 {[%clk 0:02:59]} 4... Nd5 {[%clk 0:02:58.9]} 5. Bc4 {[%clk 0:02:59.7]}
5... Nb6 {[%clk 0:02:56.8]} 6. Bb3 {[%clk 0:03:00]} 6... d5 {[%clk 0:02:53.3]}
7. exd6 {[%clk 0:02:59.7]} 7... exd6 {[%clk 0:02:52.6]} 8. d4 {[%clk 0:02:58.8]}
8... Be7 {[%clk 0:02:51.7]} 9. O-O {[%clk 0:02:57.3]} 9... O-O {[%clk
0:02:51.5]} 10. h3 {[%clk 0:02:56]} 10... d5 {[%clk 0:02:41.6]} 11. Re1 {[%clk
0:02:49.4]} 11... Bf5 {[%clk 0:02:37.8]} 12. dxc5 {[%clk 0:02:44.4]} 12... Bxc5
{[%clk 0:02:37.4]} 13. Be3 {[%clk 0:02:44.8]} 13... Qd6 {[%clk 0:02:25.2]} 14.
Nd4 {[%clk 0:02:30.8]} 14... Bxd4 {[%clk 0:02:21.2]} 15. Bxd4 {[%clk 0:02:23.8]}
15... Rfe8 {[%clk 0:01:43.5]} 16. Rxe8+ {[%clk 0:01:41.3]} 16... Rxe8 {[%clk
0:01:42.9]} 17. Bxb6 {[%clk 0:01:41.5]} 17... axb6 {[%clk 0:01:43.6]} 18. Nd2
{[%clk 0:01:42.1]} 18... d4 {[%clk 0:01:39.9]} 19. Qf3 {[%clk 0:01:33.2]} 19...
Bg6 {[%clk 0:01:30.6]} 20. Nc4 {[%clk 0:01:21.2]} 20... Qc5 {[%clk 0:01:30.2]}
21. Rd1 {[%clk 0:01:08.7]} 21... b5 {[%clk 0:01:21.7]} 22. Nd2 {[%clk
0:01:08.4]} 22... dxc3 {[%clk 0:01:20.1]} 23. Qxc3 {[%clk 0:01:05.9]} 23... Qxc3
{[%clk 0:01:18.1]} 24. bxc3 {[%clk 0:01:06.8]} 24... Rc8 {[%clk 0:01:07.7]} 25.
Nf3 {[%clk 0:00:57.8]} 25... Na5 {[%clk 0:00:51.3]} 26. Rd5 {[%clk 0:00:55.2]}
26... Nxb3 {[%clk 0:00:45.6]} 27. axb3 {[%clk 0:00:54.7]} 27... Be4 {[%clk
0:00:43.5]} 28. Re5 {[%clk 0:00:53.8]} 28... Bxf3 {[%clk 0:00:40.5]} 29. gxf3
{[%clk 0:00:54]} 29... f6 {[%clk 0:00:39.7]} 30. Rxb5 {[%clk 0:00:53.4]} 30...
Rxc3 {[%clk 0:00:39.9]} 31. Rxb7 {[%clk 0:00:53]} 31... Rxf3 {[%clk 0:00:40.2]}
32. Kg2 {[%clk 0:00:53.4]} 32... Rc3 {[%clk 0:00:40.5]} 33. b4 {[%clk
0:00:30.1]} 33... h5 {[%clk 0:00:39.6]} 34. b5 {[%clk 0:00:30.5]} 34... Rb3
{[%clk 0:00:38.1]} 35. b6 {[%clk 0:00:28.9]} 35... h4 {[%clk 0:00:35.2]} 36. f4
{[%clk 0:00:24.2]} 36... Kh7 {[%clk 0:00:33.1]} 37. f5 {[%clk 0:00:18.7]} 37...
Kh6 {[%clk 0:00:31.6]} 38. Kh2 {[%clk 0:00:19.1]} 38... Rb2+ {[%clk 0:00:30.5]}
39. Kg1 {[%clk 0:00:18.5]} 39... Rb5 {[%clk 0:00:25.6]} 40. Rb8 {[%clk
0:00:18.1]} 40... Kg5 {[%clk 0:00:24.3]} 41. Rg8 {[%clk 0:00:18.3]} 41... Kxf5
{[%clk 0:00:11.8]} 42. Rxg7 {[%clk 0:00:18.6]} 42... Rxb6 {[%clk 0:00:11.8]} 43.
Rg4 {[%clk 0:00:18.7]} 43... Ke5 {[%clk 0:00:12.1]} 44. Rxh4 {[%clk 0:00:18.7]}
44... f5 {[%clk 0:00:12.7]} 45. Ra4 {[%clk 0:00:19]} 45... Rb2 {[%clk
0:00:11.7]} 46. h4 {[%clk 0:00:18.7]} 46... f4 {[%clk 0:00:11.7]} 47. Kf1 {[%clk
0:00:18.9]} 47... Kf5 {[%clk 0:00:11.9]} 48. h5 {[%clk 0:00:13]} 48... Kg4
{[%clk 0:00:12]} 49. h6 {[%clk 0:00:13.6]} 49... Kg3 {[%clk 0:00:08.5]} 50. h7
{[%clk 0:00:14]} 50... Rb1+ {[%clk 0:00:07.1]} 51. Ke2 {[%clk 0:00:14.4]} 51...
f3+ {[%clk 0:00:07.5]} 52. Kd2 {[%clk 0:00:15]} 52... Rh1 {[%clk 0:00:07.5]} 53.
Ra7 {[%clk 0:00:15.5]} 53... f2 {[%clk 0:00:04.9]} 54. Rg7+ {[%clk 0:00:16.1]}
54... Kf4 {[%clk 0:00:05]} 55. Rf7+ {[%clk 0:00:16.1]} 55... Kg5 {[%clk
0:00:05.2]} 56. Ke2 {[%clk 0:00:12]} 56... f1=Q+ {[%clk 0:00:04.8]} 57. Rxf1
{[%clk 0:00:12.1]} 57... Rxh7 {[%clk 0:00:05.4]} 58. Rf3 {[%clk 0:00:11.3]}
58... Rh6 {[%clk 0:00:05.3]} 59. Rg3+ {[%clk 0:00:09.6]} 59... Kf5 {[%clk
0:00:05.3]} 60. Rf3+ {[%clk 0:00:09.9]} 60... Kg5 {[%clk 0:00:05.3]} 61. Rg3+
{[%clk 0:00:10]} 61... Kf5 {[%clk 0:00:05.5]} 62. Rf3+ {[%clk 0:00:10.7]} 62...
Kg5 {[%clk 0:00:05.9]} 1/2-1/2

[Event "Late-Titled-Tuesday-Blitz-October-17-2023"]
[Site "Chess.com"]
[Date "2023.10.17"]
[Round "5"]
[White "GlavkonVVS"]
[Black "GiorgianBarbosa"]
[Result "1-0"]
[WhiteElo "2542"]
[BlackElo "2379"]
[TimeControl "180+1"]
[EndTime "14:56:03 PDT"]
[Termination "GlavkonVVS won on time"]

1. Nf3 {[%clk 0:02:49.7]} 1... Nf6 {[%clk 0:02:59.8]} 2. c4 {[%clk 0:02:49.7]}
2... e6 {[%clk 0:03:00.7]} 3. Nc3 {[%clk 0:02:49.6]} 3... d5 {[%clk 0:03:01.6]}
4. d4 {[%clk 0:02:49.9]} 4... c6 {[%clk 0:03:01.1]} 5. Bg5 {[%clk 0:02:49.9]}
5... Nbd7 {[%clk 0:03:01.5]} 6. e3 {[%clk 0:02:49.8]} 6... h6 {[%clk 0:03:01.9]}
7. Bh4 {[%clk 0:02:49.4]} 7... g5 {[%clk 0:03:02.2]} 8. Bg3 {[%clk 0:02:49.4]}
8... Nh5 {[%clk 0:03:02.7]} 9. Qc2 {[%clk 0:02:45.6]} 9... Nxg3 {[%clk
0:03:02.4]} 10. hxg3 {[%clk 0:02:45.8]} 10... Bg7 {[%clk 0:03:03.3]} 11. O-O-O
{[%clk 0:02:43.7]} 11... a6 {[%clk 0:03:01.6]} 12. Nd2 {[%clk 0:02:29.2]} 12...
b5 {[%clk 0:03:01]} 13. c5 {[%clk 0:02:27.4]} 13... a5 {[%clk 0:02:57]} 14. f4
{[%clk 0:02:17.2]} 14... a4 {[%clk 0:02:45.1]} 15. a3 {[%clk 0:02:04.8]} 15...
Qa5 {[%clk 0:02:32.4]} 16. Na2 {[%clk 0:02:03.6]} 16... Nb8 {[%clk 0:02:23.5]}
17. Nb4 {[%clk 0:02:01.6]} 17... Bd7 {[%clk 0:02:22.2]} 18. Nf3 {[%clk
0:02:01.4]} 18... Na6 {[%clk 0:02:21.5]} 19. Nxa6 {[%clk 0:01:57.9]} 19... Qxa6
{[%clk 0:02:22.4]} 20. fxg5 {[%clk 0:01:57.3]} 20... hxg5 {[%clk 0:02:21.4]} 21.
Rxh8+ {[%clk 0:01:57.1]} 21... Bxh8 {[%clk 0:02:22.3]} 22. Nxg5 {[%clk
0:01:50.5]} 22... Bf6 {[%clk 0:02:20.5]} 23. Nf3 {[%clk 0:01:43.2]} 23... Qa5
{[%clk 0:02:17.3]} 24. Qc3 {[%clk 0:01:33.8]} 24... Qc7 {[%clk 0:02:17.1]} 25.
g4 {[%clk 0:01:32.4]} 25... Qg3 {[%clk 0:02:12.5]} 26. g5 {[%clk 0:01:31.5]}
26... Bxg5 {[%clk 0:02:09.2]} 27. Nxg5 {[%clk 0:01:27.1]} 27... Qxg5 {[%clk
0:02:10.1]} 28. Qd2 {[%clk 0:01:12]} 28... Ke7 {[%clk 0:02:07.7]} 29. Bd3 {[%clk
0:01:10.1]} 29... Rh8 {[%clk 0:02:05.8]} 30. Rf1 {[%clk 0:01:08.6]} 30... Rh2
{[%clk 0:01:59.2]} 31. Rf2 {[%clk 0:01:08]} 31... f5 {[%clk 0:01:53.1]} 32. Kc2
{[%clk 0:01:02.8]} 32... Qg3 {[%clk 0:01:41.6]} 33. Kc3 {[%clk 0:00:57.2]} 33...
Qc7 {[%clk 0:01:32.6]} 34. Kc2 {[%clk 0:00:56.6]} 34... Qg3 {[%clk 0:01:32.8]}
35. Bf1 {[%clk 0:00:55.2]} 35... Qg4 {[%clk 0:01:21.4]} 36. Rf3 {[%clk
0:00:49.6]} 36... Be8 {[%clk 0:01:12.8]} 37. Rf4 {[%clk 0:00:42.8]} 37... Qg3
{[%clk 0:01:08.8]} 38. Qf2 {[%clk 0:00:37.2]} 38... Qxf2+ {[%clk 0:00:54.2]} 39.
Rxf2 {[%clk 0:00:37.2]} 39... Bh5 {[%clk 0:00:54]} 40. Kd2 {[%clk 0:00:35.9]}
40... Bg4 {[%clk 0:00:50.3]} 41. Rf4 {[%clk 0:00:25.7]} 41... Rh1 {[%clk
0:00:46.7]} 42. Ke1 {[%clk 0:00:23.5]} 42... Kd7 {[%clk 0:00:46.2]} 43. Kf2
{[%clk 0:00:22]} 43... Kc7 {[%clk 0:00:45.7]} 44. Kg3 {[%clk 0:00:20.3]} 44...
Kb7 {[%clk 0:00:43]} 45. Rf2 {[%clk 0:00:20.5]} 45... Ka6 {[%clk 0:00:42.6]} 46.
Kf4 {[%clk 0:00:20.8]} 46... Ka5 {[%clk 0:00:39.6]} 47. Ke5 {[%clk 0:00:21]}
47... b4 {[%clk 0:00:39.7]} 48. Kd6 {[%clk 0:00:18.4]} 48... b3 {[%clk
0:00:21.6]} 49. Kxc6 {[%clk 0:00:18.2]} 49... Rh8 {[%clk 0:00:15.8]} 50. Kc7
{[%clk 0:00:17.8]} 50... Re8 {[%clk 0:00:10.9]} 51. c6 {[%clk 0:00:16.4]} 51...
e5 {[%clk 0:00:11.3]} 52. Kd7 {[%clk 0:00:15.1]} 52... Bh5 {[%clk 0:00:08.8]}
53. c7 {[%clk 0:00:13.1]} 53... exd4 {[%clk 0:00:06.5]} 54. exd4 {[%clk
0:00:13.3]} 54... Bg4 {[%clk 0:00:05.4]} 55. Kxe8 {[%clk 0:00:12.9]} 55... f4
{[%clk 0:00:06.3]} 56. Kd8 {[%clk 0:00:12.5]} 56... f3 {[%clk 0:00:04.9]} 57.
gxf3 {[%clk 0:00:12.5]} 57... Bf5 {[%clk 0:00:04.4]} 58. Re2 {[%clk 0:00:12.4]}
58... Bh3 {[%clk 0:00:03]} 59. Re5 {[%clk 0:00:11.9]} 59... Kb6 {[%clk
0:00:03.9]} 60. Bxh3 {[%clk 0:00:11]} 60... Ka7 {[%clk 0:00:02.9]} 61. Re6
{[%clk 0:00:09.8]} 1-0

[Event "Late-Titled-Tuesday-Blitz-October-17-2023"]
[Site "Chess.com"]
[Date "2023.10.17"]
[Round "5"]
[White "Rikikits"]
[Black "Beca95"]
[Result "0-1"]
[WhiteElo "2814"]
[BlackElo "2922"]
[TimeControl "180+1"]
[EndTime "14:56:07 PDT"]
[Termination "Beca95 won on time"]

1. Nf3 {[%clk 0:02:25.8]} 1... d5 {[%clk 0:02:58.2]} 2. b3 {[%clk 0:02:25.9]}
2... c5 {[%clk 0:02:53.4]} 3. Bb2 {[%clk 0:02:26.2]} 3... Nc6 {[%clk 0:02:53.5]}
4. e3 {[%clk 0:02:26.2]} 4... a6 {[%clk 0:02:53.9]} 5. g3 {[%clk 0:02:23.9]}
5... Bf5 {[%clk 0:02:51]} 6. Bg2 {[%clk 0:02:23.9]} 6... h6 {[%clk 0:02:51.1]}
7. O-O {[%clk 0:02:23.9]} 7... Nf6 {[%clk 0:02:51.8]} 8. d3 {[%clk 0:02:24.1]}
8... e6 {[%clk 0:02:51.5]} 9. Nbd2 {[%clk 0:02:24.4]} 9... Bh7 {[%clk
0:02:52.2]} 10. a3 {[%clk 0:02:23.4]} 10... Be7 {[%clk 0:02:52.3]} 11. Qe2
{[%clk 0:02:23.9]} 11... O-O {[%clk 0:02:52.4]} 12. e4 {[%clk 0:02:23.4]} 12...
b5 {[%clk 0:02:53]} 13. Rfe1 {[%clk 0:02:21.7]} 13... Re8 {[%clk 0:02:51.7]} 14.
e5 {[%clk 0:02:20.1]} 14... Nd7 {[%clk 0:02:51.1]} 15. Nf1 {[%clk 0:02:20.5]}
15... a5 {[%clk 0:02:50.4]} 16. a4 {[%clk 0:02:18.9]} 16... bxa4 {[%clk
0:02:50.2]} 17. Rxa4 {[%clk 0:02:19.8]} 17... Nb6 {[%clk 0:02:48.7]} 18. Rg4
{[%clk 0:02:17.6]} 18... a4 {[%clk 0:02:48.3]} 19. Bc1 {[%clk 0:02:13.5]} 19...
Kh8 {[%clk 0:02:47.7]} 20. bxa4 {[%clk 0:02:11.5]} 20... Rxa4 {[%clk 0:02:47.1]}
21. Rxa4 {[%clk 0:02:07.4]} 21... Nxa4 {[%clk 0:02:48]} 22. h4 {[%clk
0:02:02.2]} 22... Qc7 {[%clk 0:02:37.8]} 23. g4 {[%clk 0:01:56.7]} 23... Nd4
{[%clk 0:02:28.5]} 24. Nxd4 {[%clk 0:01:41.7]} 24... cxd4 {[%clk 0:02:29.4]} 25.
g5 {[%clk 0:01:31.5]} 25... hxg5 {[%clk 0:02:29.1]} 26. hxg5 {[%clk 0:01:30]}
26... Rc8 {[%clk 0:02:28.4]} 27. Bd2 {[%clk 0:01:24.5]} 27... Kg8 {[%clk
0:02:22.7]} 28. Ng3 {[%clk 0:01:19.6]} 28... Qxc2 {[%clk 0:02:18.1]} 29. Rc1
{[%clk 0:01:17.7]} 29... Qxc1+ {[%clk 0:02:17.3]} 30. Bxc1 {[%clk 0:01:18.6]}
30... Rxc1+ {[%clk 0:02:16.8]} 31. Kh2 {[%clk 0:01:18.2]} 31... Nc3 {[%clk
0:02:02.8]} 32. Qb2 {[%clk 0:00:59.3]} 32... Rb1 {[%clk 0:02:00.9]} 33. Qc2
{[%clk 0:00:59.4]} 33... Bxg5 {[%clk 0:01:55.8]} 34. Ne2 {[%clk 0:00:59.1]}
34... Bf5 {[%clk 0:01:45.3]} 35. Bh3 {[%clk 0:00:47.5]} 35... Bg6 {[%clk
0:01:16.6]} 36. f4 {[%clk 0:00:44.4]} 36... Nxe2 {[%clk 0:01:14.5]} 37. Qxb1
{[%clk 0:00:40.7]} 37... Nxf4 {[%clk 0:01:14.9]} 38. Qb8+ {[%clk 0:00:37.3]}
38... Kh7 {[%clk 0:01:14.5]} 39. Qa7 {[%clk 0:00:30.3]} 39... Nxd3 {[%clk
0:01:14.1]} 40. Qxd4 {[%clk 0:00:29.8]} 40... Bf4+ {[%clk 0:01:14.8]} 41. Kg1
{[%clk 0:00:28.7]} 41... Bg3 {[%clk 0:01:06.5]} 42. Qg4 {[%clk 0:00:22.9]} 42...
Bf2+ {[%clk 0:01:05.5]} 43. Kf1 {[%clk 0:00:22.5]} 43... Be3 {[%clk 0:01:04.9]}
44. Qh4+ {[%clk 0:00:17.6]} 44... Bh6 {[%clk 0:01:05.1]} 45. Qg3 {[%clk
0:00:14.8]} 45... Nf4 {[%clk 0:01:03.3]} 46. Bg4 {[%clk 0:00:13.2]} 46... Be4
{[%clk 0:01:03.2]} 47. Bf3 {[%clk 0:00:11.9]} 47... Bf5 {[%clk 0:01:01.5]} 48.
Bg4 {[%clk 0:00:11.8]} 48... Bd3+ {[%clk 0:01:01.6]} 49. Ke1 {[%clk 0:00:12]}
49... Bg6 {[%clk 0:01:01.6]} 50. Be2 {[%clk 0:00:10.6]} 50... Kg8 {[%clk
0:00:53]} 51. Bf1 {[%clk 0:00:10.2]} 51... Be4 {[%clk 0:00:52.6]} 52. Qh4 {[%clk
0:00:09.2]} 52... Ng6 {[%clk 0:00:52.3]} 53. Qd8+ {[%clk 0:00:08.8]} 53... Kh7
{[%clk 0:00:52.9]} 54. Qc7 {[%clk 0:00:08.7]} 54... Kg8 {[%clk 0:00:44.5]} 55.
Qd8+ {[%clk 0:00:08.4]} 55... Nf8 {[%clk 0:00:45.1]} 56. Be2 {[%clk 0:00:07]}
56... Bf4 {[%clk 0:00:44.7]} 57. Qb8 {[%clk 0:00:04.1]} 57... Bh6 {[%clk
0:00:44.5]} 58. Kf2 {[%clk 0:00:03.9]} 58... g5 {[%clk 0:00:40]} 59. Bh5 {[%clk
0:00:03.7]} 59... Kg7 {[%clk 0:00:35.2]} 60. Qd8 {[%clk 0:00:03.2]} 60... Nh7
{[%clk 0:00:34.4]} 61. Qe7 {[%clk 0:00:02.8]} 61... Bg6 {[%clk 0:00:34.8]} 62.
Bxg6 {[%clk 0:00:03.1]} 62... Kxg6 {[%clk 0:00:35.7]} 63. Kg3 {[%clk 0:00:03.4]}
63... Bg7 {[%clk 0:00:35.6]} 64. Qd7 {[%clk 0:00:01.3]} 64... Bxe5+ {[%clk
0:00:35]} 65. Kg2 {[%clk 0:00:02.2]} 65... Nf6 {[%clk 0:00:35.1]} 66. Qb7 {[%clk
0:00:03.1]} 66... Bf4 {[%clk 0:00:34.6]} 67. Qb1+ {[%clk 0:00:04]} 67... Kg7
{[%clk 0:00:34.2]} 68. Qb7 {[%clk 0:00:04.3]} 68... e5 {[%clk 0:00:34.4]} 69.
Qe7 {[%clk 0:00:03.9]} 69... Kg6 {[%clk 0:00:34.8]} 70. Qf8 {[%clk 0:00:03.6]}
70... e4 {[%clk 0:00:35.1]} 71. Kh3 {[%clk 0:00:04]} 71... d4 {[%clk 0:00:35.1]}
72. Kg2 {[%clk 0:00:03.7]} 72... d3 {[%clk 0:00:35.5]} 73. Kf2 {[%clk
0:00:04.3]} 73... e3+ {[%clk 0:00:35.8]} 74. Kg2 {[%clk 0:00:04.1]} 74... e2
{[%clk 0:00:36.1]} 75. Qe7 {[%clk 0:00:04.1]} 75... Bd2 {[%clk 0:00:35.8]} 76.
Qd6 {[%clk 0:00:01.2]} 76... e1=Q {[%clk 0:00:33.9]} 0-1